Cogmind - Beta 13 @@@ ROGUE MODE // 2024.04.02 @ 09:28:27 Player: Mr.Morel Result: Destroyed by as-25874 with Assembled Heavy Rifle Performance ------------- Evolutions (2) 1000 Regions Visited (4) 800 Robots Destroyed (53) 265 Value Destroyed (1880) 1880 Prototype IDs (2) 40 Alien Tech Used (0) 0 Bonus (0) 0 TOTAL SCORE: 3985 Bonus ------- None Cogmind --------- Core Integrity 0/550 Matter 300/300 Energy 100/100 System Corruption 3% Temperature Cool (0) Movement Core (50) Location -8/Storage Parts ------- > --- POWER (2) -------- (None) > --- PROPULSION (3) --- (None) > --- UTILITY (3) ------ Advanced Visual Processing Unit Targeting Computer > --- WEAPON (3) ------- Katana > --- INVENTORY (5) ---- Compact Battery (200) Peak State ------------ > --- POWER ------------ Light Ion Engine Light Nuclear Core > --- PROPULSION ------- Aluminum Leg Aluminum Leg Aluminum Leg > --- UTILITY ---------- Advanced Visual Processing Unit Improved Terrain Scan Processor Targeting Computer > --- WEAPON ----------- Heavy EM Shotgun Beam Rifle Ion Cannon > --- INVENTORY -------- Compact Battery EM Pulse Gun Particle Cannon Mini Grenade Launcher Katana [Rating: 24] Favorites ----------- Power Light Ion Engine Engine Light Ion Engine Power Core Light Nuclear Core Propulsion Aluminum Leg Treads Light Treads Leg Aluminum Leg Wheel Wheel Utility Advanced Visual Processing Unit Device Shield Generator Storage Compact Battery Processor Advanced Visual Processing Unit Protection Medium Armor Plating Weapon Beam Rifle Energy Gun Beam Rifle Energy Cannon Ion Cannon Ballistic Gun Light Assault Rifle Ballistic Cannon Light Cannon Launcher Mini Grenade Launcher Special Weapon Welding Torch Slashing Weapon Katana Build | -11 -10 -9 -8 -8 ------- Run | Yrd Mat Mat Mat Sto Slots Evolved 4 | . . 2 2 . Power 1 | . . . 1 . Propulsion 1 | . . 1 . . Utility 1 | . . . 1 . Weapon 1 | . . 1 . . Parts Attached 88 | 7 25 17 34 5 Power 15 | 1 2 2 9 1 Engine 9 | 1 2 1 5 . Core 6 | . . 1 4 1 Reactor . | . . . . . Propulsion 28 | 4 12 3 7 2 Treads 2 | . 2 . . . Leg 24 | 2 10 3 7 2 Wheel 2 | 2 . . . . Hover . | . . . . . Flight . | . . . . . Utility 14 | . 4 2 7 1 Device 3 | . 1 1 1 . Storage 3 | . 2 . 1 . Processor 3 | . . . 3 . Hackware . | . . . . . Protection 5 | . 1 1 2 1 Artifact . | . . . . . Weapon 31 | 2 7 10 11 1 Energy Gun 19 | 1 3 8 6 1 Energy Cannon 2 | . . . 2 . Ballistic Gun 1 | 1 . . . . Ballistic Cannon 3 | . 2 1 . . Launcher 3 | . . 1 2 . Special Weapon 2 | . 2 . . . Impact Weapon . | . . . . . Slashing Weapon 1 | . . . 1 . Piercing Weapon . | . . . . . Special Melee Weapon . | . . . . . Unidentified Prototypes 2 | . . . 2 . Corrupted Parts 2 | . . 1 1 . System Corruption 6 | . . 3 3 . Parts Lost 41 | 1 6 2 23 9 Power 8 | . . . 6 2 Propulsion 15 | 1 3 . 7 4 Utility 6 | . 1 . 3 2 Weapon 12 | . 2 2 7 1 Highest Loss Streak 10 | 1 4 1 10 7 To Critical Strikes 1 | . . . 1 . Average Slot Usage (%) 87 | . 76 99 86 78 Engine 8 | . 14 7 5 . Core 3 | . . 3 6 10 Leg 27 | . 26 33 23 24 Device 5 | . 2 11 3 . Storage 1 | . 2 . 2 . Processor 6 | . . . 16 18 Protection 5 | . 2 11 2 7 Energy Gun 18 | . 16 25 16 9 Energy Cannon 2 | . . . 5 . Ballistic Cannon 1 | . 2 2 . . Special Weapon 3 | . 6 4 . . Slashing Weapon 1 | . . . 2 9 Naked Turns . | . . . . . Heaviest Build 25 | 6 12 23 25 20 Greatest Support 40 | 20 40 30 40 35 Greatest Overweight (x) 3 | . 3 . 3 1 Average Overweight (x) . | . . . . . Largest Inventory Capacity 5 | 5 5 5 5 5 Average Capacity 5 | 5 5 5 5 5 Most Carried 5 | 4 5 5 5 2 Average Carried 3 | 2 3 3 3 1 Final Capacity 5 | 5 5 5 5 5 Final Carried 4 | 4 4 4 3 1 Class Distribution -------------------- 39% | Tank 34% | Mutant 13% | Scavenger-Mutant 10% | Scavenger-Gunner Dominant Class ---------------- Mutant | -10/Materials Tank | -9/Materials Scavenger-Gunner | -8/Materials Scavenger-Mutant | -8/Storage Resources | -11 -10 -9 -8 -8 ----------- Run | Yrd Mat Mat Mat Sto Matter Collected 1240 | 272 273 239 416 40 Remotely . | . . . . . Salvage Created 1888 | 32 407 375 871 203 Parts 105 | 3 22 24 52 4 Haulers Intercepted . | . . . . . Recyclers Shooed 1 | . . . . 1 Parts Field Recycled . | . . . . . Retrieved Matter . | . . . . . Parts Self-Destructed . | . . . . . Prevented . | . . . . . Kills | -11 -10 -9 -8 -8 ------- Run | Yrd Mat Mat Mat Sto Combat Hostiles Destroyed 49 | 1 14 11 19 4 Melee 10 | . . 1 5 4 Guns 16 | 1 8 5 2 . Cannons 11 | . 6 2 3 . AOE 12 | . . 3 9 . Classes Destroyed 7 | 1 2 1 2 1 Worker 2 | . . . 2 . Watcher 4 | . 1 1 2 . Swarmer 8 | . 5 3 . . Grunt 32 | 1 9 6 14 2 Sentry 6 | . . 2 4 . Hunter 1 | . . . 1 . Assembled 2 | . . . . 2 Best Kill Streak 8 | 1 4 4 8 2 Combat Bots Only 6 | 1 4 4 6 2 Max Kills in Single Turn 4 | 1 2 1 4 1 Gunslinging . | . . . . . Exploded 2 | . . 1 2 . Melee 1 | . . 1 1 1 Uniques/NPCs Destroyed . | . . . . . Combat | -11 -10 -9 -8 -8 -------- Run | Yrd Mat Mat Mat Sto Hostile Shots Fired 507 | 9 132 78 249 39 Missed 156 | 1 42 25 78 10 Damage Taken 4713 | 87 920 455 2701 550 Core 762 | . 170 41 390 161 Absorbed by Shields 265 | . . 157 108 . Core Remaining (%) 73 | 100 32 89 . . Volleys Fired 107 | 7 45 23 32 . Largest 3 | 2 2 3 3 . Hottest 166 | 70 156 145 166 . Shots Fired 214 | 14 78 54 66 2 Gun 147 | 14 58 37 36 2 Cannon 48 | . 19 10 19 . Launcher 12 | . . 1 11 . Special 7 | . 1 6 . . Kinetic 41 | 7 24 10 . . Thermal 122 | 7 54 28 31 2 Explosive 12 | . . 1 11 . Electromagnetic 39 | . . 15 24 . Robot Hit Streak 11 | 2 7 8 11 3 Robot Miss Streak 4 | 2 3 4 4 . Penetration Max . | . . . . . Secondary Targets . | . . . . . Shots Hit Robots 147 | 8 43 33 55 8 Core Hits 99 | 3 24 22 45 5 Critical Kills . | . . . . . Critical Parts Destroyed . | . . . . . Critical Strikes 4 | . 3 1 . . Burn 2 | . 2 . . . Blast 2 | . 1 1 . . Melee Attacks 25 | . . . 18 7 Impact . | . . . . . Slashing 25 | . . . 18 7 Piercing . | . . . . . Sneak Attacks . | . . . . . Combat Hostiles . | . . . . . Follow-up Attacks . | . . . . . Damage Inflicted 3981 | 89 653 615 2363 261 Guns 1299 | 89 425 359 397 29 Cannons 548 | . 224 84 240 . Explosions 1384 | . . 138 1246 . Melee 685 | . . . 453 232 Ramming 54 | . 4 23 27 . Kinetic 363 | 39 240 84 . . Thermal 1264 | 50 409 269 507 29 Explosive 1095 | . . 72 1023 . Electromagnetic 520 | . . 167 353 . Impact . | . . . . . Slashing 685 | . . . 453 232 Piercing . | . . . . . Highest Corruption 3 | . . 3 3 3 Average Corruption 3 | . . 3 3 3 Corruption Purged . | . . . . . Corruption Blocked . | . . . . . Effects 28 | . . 8 15 5 Message Errors 10 | . . 2 6 2 Matter Fused 5 | . . 1 4 . Heat Flow Errors 1 | . . 1 . . Energy Discharges 4 | . . 1 2 1 Parts Rejected 1 | . . . 1 . Data Loss (minor) 2 | . . 2 . . Data Loss (major) 1 | . . 1 . . Misfires 2 | . . . . 2 Alerts 1 | . . . 1 . Weapon Failures 1 | . . . 1 . Overload Shots . | . . . . . Overflow Damage 65 | . 2 . 52 11 Projectiles 2 | . 2 . . . Explosions 6 | . . . 6 . Melee 57 | . . . 46 11 Knockbacks 7 | . 6 1 . . Impact . | . . . . . Kinetic 5 | . 4 1 . . Secondary 2 | . 2 . . . Self-Inflicted Damage 114 | . . 26 88 . Shots 4 | . . 1 3 . Rammed . | . . . . . Targets Rammed 12 | . 1 8 3 . Kicked 12 | . 1 8 3 . Crushed . | . . . . . Highest Temperature 395 | 158 240 395 352 46 Average Temperature 91 | 75 86 101 96 24 Received Heat Transfer 1936 | 48 375 144 1324 45 Effects 2 | . 2 . . . Energy Bleed 1 | . 1 . . . Interference 1 | . 1 . . . Siege Activations . | . . . . . Robots Corrupted . | . . . . . Combat Hostiles . | . . . . . Parts Fried . | . . . . . Impact Corruptions . | . . . . . Robots Melted . | . . . . . Combat Hostiles . | . . . . . Parts Melted 3 | . 1 1 1 . Heat Transferred 2829 | 148 1258 581 768 74 Parts Sabotaged . | . . . . . Parts Stolen . | . . . . . Parts Stripped . | . . . . . Power Chain Reactions 5 | . . 2 3 . Alert | -11 -10 -9 -8 -8 ------- Run | Yrd Mat Mat Mat Sto Peak Influence 315 | 20 315 266 300 116 Initial 91 | . 13 79 61 91 Average 122 | 4 131 128 121 96 Maximum Alert Level 1 | . 1 1 1 . Low Security (%) 89 | 100 87 93 84 100 Level 1 10 | . 12 6 15 . Level 2 . | . . . . . Level 3 . | . . . . . Level 4 . | . . . . . Level 5 . | . . . . . High Security . | . . . . . Max Security . | . . . . . Squads Dispatched 10 | . 3 2 4 1 Investigation 3 | . 1 1 . 1 Extermination . | . . . . . Reinforcement 6 | . 2 1 3 . Assault . | . . . . . Garrison 1 | . . . 1 . Intercept . | . . . . . Searches Triggered . | . . . . . Construction Impeded . | . . . . . Haulers Reinforced . | . . . . . Active Scanning Responses . | . . . . . Cargo Convoy Interrupts . | . . . . . Stealth | -11 -10 -9 -8 -8 --------- Run | Yrd Mat Mat Mat Sto Distress Signals 4 | . . 1 3 . Communications Jammed . | . . . . . Distress Signals . | . . . . . Times Spotted 97 | 1 28 18 39 11 Peak Tracking Total 9 | 1 4 5 9 5 Tactical Retreats 5 | . 3 . 2 . Traps | -11 -10 -9 -8 -8 ------- Run | Yrd Mat Mat Mat Sto Traps Triggered 1 | . . . . 1 Indirectly . | . . . . . Trap Hack Attempts . | . . . . . Triggered . | . . . . . Disarmed . | . . . . . Reprogrammed . | . . . . . Reused . | . . . . . Traps Extracted . | . . . . . Installed . | . . . . . Triggered . | . . . . . Machines | -11 -10 -9 -8 -8 ---------- Run | Yrd Mat Mat Mat Sto Machines Disabled 6 | . 1 . 5 . Max in Single Turn 2 | . 1 . 2 . Machines Repaired . | . . . . . Machines Dismantled . | . . . . . Machines Sabotaged . | . . . . . Overloaded Fab Kills . | . . . . . Hacking | -11 -10 -9 -8 -8 --------- Run | Yrd Mat Mat Mat Sto Machines Accessed 8 | . 3 4 . 1 Terminals 7 | . 3 3 . 1 Fabricators . | . . . . . Repair Stations . | . . . . . Recycling Units . | . . . . . Scanalyzers 1 | . . 1 . . Garrison Access . | . . . . . Total Hacks 26 | . 7 15 . 4 Successful 20 | . 5 12 . 3 Failed 6 | . 2 3 . 1 Catastrophic . | . . . . . Database Lockouts . | . . . . . Manual . | . . . . . Terminals 20 | . 7 9 . 4 Fabricators . | . . . . . Repair Stations . | . . . . . Recycling Units . | . . . . . Scanalyzers 6 | . . 6 . . Garrison Access . | . . . . . Terminal Hacks 14 | . 5 6 . 3 Record 8 | . 2 4 . 2 Alert Level 3 | . 1 1 . 1 Transport Status 1 | . 1 . . . Registered Components 1 | . . 1 . . Zone Layout 1 | . 1 . . . Fabricator Hacks . | . . . . . Repair Station Hacks . | . . . . . Recycling Unit Hacks . | . . . . . Scanalyzer 6 | . . 6 . . Insert Component 3 | . . 3 . . Analyze 3 | . . 3 . . Garrison Access Hacks . | . . . . . Unauthorized Hacks . | . . . . . Terminals . | . . . . . Fabricators . | . . . . . Repair Stations . | . . . . . Recycling Units . | . . . . . Scanalyzers . | . . . . . Garrison Access . | . . . . . Data Cores Recovered . | . . . . . Used . | . . . . . Hacking Detections 6 | . 2 3 . 1 Full Trace Events 4 | . 2 1 . 1 Feedback Events . | . . . . . Feedback Blocked . | . . . . . Robot Schematics Acquired . | . . . . . Robots Built . | . . . . . Authchips . | . . . . . Time . | . . . . . Total Robot Build Rating . | . . . . . Part Schematics Acquired 3 | . . 3 . . Parts Built . | . . . . . Authchips . | . . . . . Time . | . . . . . Total Part Build Rating . | . . . . . Parts Repaired . | . . . . . Time . | . . . . . Parts Recycled . | . . . . . Recycled Matter . | . . . . . Retrieved Matter . | . . . . . Retrieved Components . | . . . . . Parts Scanalyzed 3 | . . 3 . . Part Schematics Acquired 3 | . . 3 . . Parts Damaged . | . . . . . Bothacking | -11 -10 -9 -8 -8 ------------ Run | Yrd Mat Mat Mat Sto Used RIF Installer . | . . . . . Robots Hacked . | . . . . . Non-combat . | . . . . . Combat . | . . . . . Robot Hacks Applied . | . . . . . Relay Couplers Released . | . . . . . Fabnet Peak Effective % . | . . . . . Robots Rewired . | . . . . . Allies Hacked . | . . . . . Hacks Repelled . | . . . . . Allies | -11 -10 -9 -8 -8 -------- Run | Yrd Mat Mat Mat Sto Total Allies . | . . . . . Largest Group . | . . . . . Highest-Rated Group . | . . . . . Highest-Rated Ally . | . . . . . Total Orders . | . . . . . Ally Attacks . | . . . . . Total Damage . | . . . . . Kills . | . . . . . Allies Corrupted . | . . . . . Allies Melted . | . . . . . Intel | -11 -10 -9 -8 -8 ------- Run | Yrd Mat Mat Mat Sto Robot Analysis Total . | . . . . . Derelict Logs Recovered . | . . . . . Drone Launches . | . . . . . Drone Recoveries . | . . . . . Exploration | -11 -10 -9 -8 -8 ------------- Run | Yrd Mat Mat Mat Sto Turns Passed 3653 | 101 1054 1116 1208 174 Spaces Moved 2571 | 85 716 831 818 121 Core 48 | 28 3 . 17 . Treads 1 | . 1 . . . Legs 2477 | 12 712 831 801 121 Wheels 45 | 45 . . . . Hover . | . . . . . Flight . | . . . . . Fastest Speed 50 | 50 120 120 120 120 Average Speed 119 | 75 120 120 122 122 Slowest Speed 200 | 120 200 120 200 190 Overloaded Moves . | . . . . . Propulsion Burnouts . | . . . . . Robots Hopped . | . . . . . Cave-ins Triggered . | . . . . . Exploration Rate (%) 35 | 6 63 45 49 15 Regions Visited 4 Branch Regions 1 Pre-discovered Areas . | . . . . . Known Exits Taken . | . . . . . Unknown Exits Taken 4 | 1 1 1 1 . Scrap Searched . | . . . . . Spaces Dug . | . . . . . Terrain Destroyed 78 | . 1 13 64 . Melee . | . . . . . Projectile 2 | . 1 . 1 . AOE 76 | . . 13 63 . Terrain Rammed . | . . . . . Walls Destroyed . | . . . . . Machines Disabled . | . . . . . Actions | -11 -10 -9 -8 -8 --------- Run | Yrd Mat Mat Mat Sto Total 2917 | 108 833 901 939 136 Wait 2 | . 2 . . . Move 2567 | 84 715 830 817 121 Hop . | . . . . . Pick Up 78 | 10 26 13 26 3 Fast Attach . | . . . . . Attach 56 | 6 10 7 28 5 Detach 7 | . 1 1 5 . Swap 32 | 1 15 10 6 . Drop 31 | . 18 9 4 . Fire 107 | 7 45 23 32 . Melee 25 | . . . 18 7 Ram . | . . . . . Kick 12 | . 1 8 3 . Crush . | . . . . . Escape Stasis . | . . . . . Rewire . | . . . . . Trap . | . . . . . Miscellaneous . | . . . . . Route ------- -11/Scrapyard -10/Materials -9/Materials -8/Materials -8/Storage History --------- Turn | Location | Event 2 | -11/Scrapyard | Met Revision 17 59 | -11/Scrapyard | Discovered new exit (range 8) 102 | -11/Scrapyard | Entered Materials 313 | -10/Materials | Build established: Mutant 667 | -10/Materials | Lost 4 parts (2n2w) 724 | -10/Materials | Discovered new exit (range 7) 759 | -10/Materials | Core integrity fell below 50% 1156 | -10/Materials | Entered another Materials area 1156 | -9/Materials | Evolved 2 slots: Propulsion x1, Weapon x1 1441 | -9/Materials | Build established: Tank 1587 | -9/Materials | Discovered new exit (range 16) 2272 | -9/Materials | Entered another Materials area 2272 | -8/Materials | Evolved 2 slots: Power x1, Utility x1 2664 | -8/Materials | Lost 6 parts (2p1n2u1w) 2985 | -8/Materials | Build established: Scavenger-Gunner 3160 | -8/Materials | Lost 6 parts (2p3n1w) 3361 | -8/Materials | Core integrity fell below 50% 3420 | -8/Materials | Garrison activated, responded to threat 3449 | -8/Materials | Lost 10 parts (2p3n1u4w) 3452 | -8/Materials | Discovered new exit (range 19) 3480 | -8/Materials | Entered Storage 3633 | -8/Storage | Assembled infested ambush trap array 3649 | -8/Storage | Core integrity fell below 20% 3654 | -8/Storage | Destroyed by as-25874 with Assembled Heavy Rifle Last Messages --------------- ALERT: Infestation has breached Complex 0b10, dispatching Demolisher response squad. Carbon-fiber Leg destroyed. as-49167 destroyed. Aluminum Leg destroyed. Hrd. Light Armor Plating destroyed. as-98708 sneak attacks. U-05 Engineer destroyed. as-95775 emerges from a hatch in the floor. as-72504 emerges from a hatch in the floor. as-25874 emerges from a hatch in the floor. Lgt. Nuclear Core destroyed. Destroyed Asb. Hover Unit. Lgt. Nuclear Core destroyed. Aluminum Leg destroyed. Particle Gun destroyed. as-98708 destroyed. as-86198 emerges from a hatch in the floor. as-07504 emerges from a hatch in the floor. as-83008 emerges from a hatch in the floor. Map ----- +----------------------------------------------------+ | ?????????????????????????????????????????????????? | | ?????????????????????????????????????????????????? | | ?????????????????????????????????????????????????? | | ?????????????????????????????????????????????????? | | ?????????????????????????????????????????????????? | | ?????????????????????????????????????????????????? | | ?????????????????????????????????????????????????? | | ?????????????????????????????????????????????????? | | ?????????????????????????????????????????????????? | | ?????????????????????????????????????????????????? | | ?????????????????????????????????????????????????? | | ?????????????????????????????????????????????????? | | ???????????????????????????#?????????????????????? | | ???????????????????????????? ????????????????????? | | ???????????????????????????? #+###+##????????????? | | ?????????????????????????????+ #?????######## | | ?????????????????????????????# +?????# % | | ?????????????????????????????# #?????# | | ?????????????????????????????+ #?????# | | ?????????????????????????????# #?????# | | ?????????????????????????????# #?????# | | ?????????????????????????????# #?????# | | ?????????????????????????????# #?????# ! = | | ?????????????????????????????# #?????# %% | | ??????????????????????######## ###########+## | | ??????????????????????# @aaa= | | ??????????????????????+ agaa | | ??????????????????????# gsa | | ??????????????????????############################ | | ?????????????????????????????????????????????????? | | ?????????????????????????????????????????????????? | | ?????????????????????????????????????????????????? | | | | | | | | | | | | | | | | | | | | | | | | | | | | | | | | | | | | | +----------------------------------------------------+ Best States ------------- Heat Dissipation 38 Energy Generation 23 Energy Capacity 525 Matter Stores 326 Matter Capacity 400 Sight Range 20 Terrain Scan Density 110 Additional Mass Support 6 Armor Coverage 225 Propulsion Shielding 33 Evasion (%) 55 Targeting Accuracy 5 Recoil Reduction 1 Item Schematics ----------------- Heat Sink | -9/Materials | Scanalyzed Med. Laser | -9/Materials | Scanalyzed EM Pulse Gun | -9/Materials | Scanalyzed Robot Schematics ------------------ None Fabricated ------------ Nothing Alien Tech Used ----------------- None Achievements -------------- Crack Shot Troublemaker Challenges ------------ None Game ------ Seed LargeCoolingLink Manual? 0 Play Time 01:00:21 Cumulative 2.9 hours Start 2024.04.01 @ 10:24:45 End 2024.04.02 @ 09:28:27 Sessions 3 Manual Loads 0 Difficulty Rogue Special Mode None Game No. 2 Rogue 2 Adventurer 0 Explorer 0 Win Type - Total 0 Types 0/0/0/0/0/0/0/0/0 Lore% 1 Gallery% 8 Achievement% 7 Wizard Run 0 Options --------- Layout 1 ASCII 0 Keyboard 0 Movement Arrows Keybinds 0 Fullscreen 1 Font 24/Smallcaps Map View 50x35 Zoom Use 0% Tactical HUD 0 Map Filters NONE Filters NONE Steam 1 RUN: 83533cdc-4ac5-40d1-9792-e2ddbe27d61e